[Event "Western Asian Girls Chess-ch 2023"]
[Site "Colombo"]
[Date "2023.12.05"]
[Round "9.5"]
[White "Ahmed, Walijah"]
[Black "Rathnayake, R M Dulinma Hemalni"]
[Result "1-0"]
[ECO "B43"]
[WhiteElo "1858"]
[BlackElo "1532"]
[Annotator "NA RC"]
[PlyCount "121"]
[EventDate "2023.11.30"]
[EventCountry "SRI"]
[SourceTitle "playchess.com"]
[Source "ChessBase"]
[SourceQuality "1"]
[TimeControl "5400+30"]

1. e4 {[%emt 0:00:03]} c5 {[%emt 0:08:02]} 2. Nf3 {[%emt 0:00:10]} e6 {[%emt 0:00:27]} 3. d4 {[%emt 0:00:22]} cxd4 {[%emt 0:00:05]} 4. Nxd4 {[%emt 0:00:06]} a6 {[%emt 0:00:03]} 5. Bd3 {[%emt 0:01:44]} Nf6 {[%emt 0:00:11]} 6. Nc3 {[%emt 0:00:40]} Qc7 {[%emt 0:02:57]} 7. O-O {[%emt 0:01:22]} b5 {[%emt 0:05:43]} 8. a3 {[%emt 0:02:50]} Nc6 {[%emt 0:04:26]} 9. Nb3 {[%emt 0:04:16]} Be7 {[%emt 0:07:38]} 10. Be3 {[%emt 0:01:44]} O-O {[%emt 0:03:00]} 11. f4 {[%emt 0:01:42]} d6 {[%emt 0:01:37]} 12. Kh1 {[%emt 0:01:06]} Rd8 {[%emt 0:03:04]} 13. Qe1 {[%emt 0:04:00]} d5 {[%emt 0:04:34]} 14. exd5 {[%emt 0:12:49]} exd5 {[%emt 0:02:13]} 15. Nd4 {[%emt 0:03:45]} Bd6 {[%emt 0:05:46]} 16. Qh4 {[%emt 0:05:01]} Re8 {[%emt 0:08:24]} 17. Rae1 {[%emt 0:09:37]} Ne7 {[%emt 0:08:06]} 18. f5 {[%emt 0:07:39]} Nc6 {[%emt 0:10:30]} 19. Nxc6 {[%emt 0:06:35]} Qxc6 {[%emt 0:02:04]} 20. Bd4 {[%emt 0:00:15]} Be7 {[%emt 0:00:34]} 21. Qg5 {[%emt 0:03:20]} Bb7 {[%emt 0:03:25]} 22. Re3 {[%emt 0:01:00]} h6 {[%emt 0:00:58]} 23. Qg3 {[%emt 0:02:21]} Bc5 {[%emt 0:01:35]} 24. Rxe8+ {[%emt 0:10:51]} Rxe8 {[%emt 0:00:27]} 25. Ne2 {[%emt 0:00:39]} Bd6 {[%emt 0:03:50]} 26. Qf3 {[%emt 0:01:05]} Be5 {[%emt 0:00:35]} 27. c3 {[%emt 0:00:41]} Qd6 {[%emt 0:01:03]} 28. Bxe5 {[%emt 0:02:01]} Qxe5 {[%emt 0:01:33]} 29. Qf4 {[%emt 0:01:55]} Qxf4 {[%emt 0:02:59]} 30. Rxf4 {[%emt 0:00:13]} Re3 {[%emt 0:00:22]} 31. Rd4 {[%emt 0:01:44]} Ne4 {[%emt 0:00:45]} 32. Kg1 {[%emt 0:00:53]} Nc5 {[%emt 0:02:46]} 33. Nf4 {[%emt 0:00:20]} Re5 {[%emt 0:01:41]} 34. Bc2 {[%emt 0:01:52]} Ne4 {[%emt 0:00:37]} 35. g4 {[%emt 0:03:14]} Kf8 {[%emt 0:00:48]} 36. Bxe4 {[%emt 0:00:41]} Rxe4 {[%emt 0:00:33]} 37. Rxe4 {[%emt 0:00:16]} dxe4 {[%emt 0:00:07]} 38. Kf2 {[%emt 0:00:12]} Ke7 {[%emt 0:01:05]} 39. Ke3 {[%emt 0:00:34]} Kf6 {[%emt 0:00:22]} 40. h4 {[%emt 0:01:03]} Ke5 {[%emt 0:00:12]} 41. Ne2 {[%emt 0:02:43]} g6 {[%emt 0:01:32]} 42. fxg6 {[%emt 0:02:01]} fxg6 {[%emt 0:00:10]} 43. Nf4 {[%emt 0:00:14]} g5 {[%emt 0:01:09]} 44. hxg5 {[%emt 0:00:06]} hxg5 {[%emt 0:00:05]} 45. Nh3 {[%emt 0:00:08]} Kf6 {[%emt 0:00:04]} 46. Kd4 {[%emt 0:00:13]} Bc8 {[%emt 0:02:37]} 47. Nf2 {[%emt 0:00:07]} Ke6 {[%emt 0:03:16]} 48. Nxe4 {[%emt 0:00:19]} Ke7 {[%emt 0:00:00]} 49. Kc5 {[%emt 0:01:14]} Bxg4 {[%emt 0:00:00]} 50. Nxg5 {[%emt 0:00:32]} Kf6 {[%emt 0:00:00]} 51. Ne4+ {[%emt 0:00:13]} Ke5 {[%emt 0:00:00]} 52. Nd6 {[%emt 0:00:22]} Be6 {[%emt 0:00:00]} 53. Nb7 {[%emt 0:00:28]} Ke4 {[%emt 0:03:00]} 54. Kb6 {[%emt 0:00:29]} Bc4 {[%emt 0:00:00]} 55. Nd6+ {[%emt 0:01:51]} Kd3 {[%emt 0:00:00]} 56. Nxc4 {[%emt 0:00:43]} bxc4 {[%emt 0:00:00]} 57. Kxa6 {[%emt 0:00:31]} Kc2 {[%emt 0:02:00]} 58. Kb5 {[%emt 0:00:03]} Kxb2 {[%emt 0:00:30]} 59. Kxc4 {[%emt 0:00:04]} Kxa3 {[%emt 0:00:00]} 60. Kb5 {[%emt 0:00:05]} Kb3 {[%emt 0:00:00]} 61. c4 {[%emt 0:00:03]} 1-0

[Event "Western Asian Girls Chess-ch 2023"]
[Site "Colombo"]
[Date "2023.12.05"]
[Round "9.6"]
[White "Pallie, Ehsha Mishela"]
[Black "Sagar Siya"]
[Result "1-0"]
[ECO "C99"]
[WhiteElo "1569"]
[BlackElo "1537"]
[Annotator "NA RC"]
[PlyCount "99"]
[EventDate "2023.11.30"]
[EventCountry "SRI"]
[SourceTitle "playchess.com"]
[Source "ChessBase"]
[SourceQuality "1"]
[TimeControl "5400+30"]

1. e4 {[%emt 0:00:00]} e5 {[%emt 0:00:00]} 2. Nf3 {[%emt 0:00:00]} Nc6 {[%emt 0:00:00]} 3. Bb5 {[%emt 0:00:00]} a6 {[%emt 0:00:00]} 4. Ba4 {[%emt 0:00:00]} Nf6 {[%emt 0:00:00]} 5. O-O {[%emt 0:00:00]} Be7 {[%emt 0:00:00]} 6. Re1 {[%emt 0:00:00]} b5 {[%emt 0:00:00]} 7. Bb3 {[%emt 0:00:00]} d6 {[%emt 0:00:00]} 8. c3 {[%emt 0:00:00]} O-O {[%emt 0:00:00]} 9. h3 {[%emt 0:00:05]} Na5 {[%emt 0:00:07]} 10. Bc2 {[%emt 0:00:30]} c5 {[%emt 0:00:30]} 11. d4 {[%emt 0:00:30]} Qc7 12. Nbd2 {[%emt 0:00:30]} cxd4 {[%emt 0:01:00]} 13. cxd4 {[%emt 0:00:20]} Rd8 {[%emt 1:35:23]} 14. Nf1 {[%emt 0:08:07]} exd4 {[%emt 0:00:00]} 15. Nxd4 {[%emt 0:02:09]} d5 {[%emt 0:00:00]} 16. e5 {[%emt 0:05:27]} Ne4 {[%emt 0:01:30]} 17. Bf4 {[%emt 0:26:46]} Bc5 {[%emt 0:00:00]} 18. Ne3 {[%emt 0:03:18]} Qb6 {[%emt 0:00:00]} 19. Nb3 {[%emt 0:07:56]} Nxb3 {[%emt 0:00:00]} 20. Bxb3 {[%emt 0:01:31]} Be6 {[%emt 0:00:00]} 21. Qf3 {[%emt 0:06:50]} Nd2 {[%emt 0:00:00]} 22. Qg3 {[%emt 0:02:24]} Nxb3 {[%emt 0:00:00]} 23. axb3 {[%emt 0:00:01]} d4 {[%emt 0:00:00]} 24. Nf1 {[%emt 0:01:52]} d3 {[%emt 0:00:00]} 25. Nd2 {[%emt 0:10:33]} Bf5 {[%emt 0:00:00]} 26. Bg5 {[%emt 0:04:17]} Rd7 {[%emt 0:00:00]} 27. Qf3 {[%emt 0:00:23]} Bxf2+ {[%emt 0:00:00]} 28. Qxf2 {[%emt 0:00:08]} Qg6 {[%emt 0:00:00]} 29. Bf4 {[%emt 0:03:32]} Rc8 {[%emt 0:00:00]} 30. Rac1 {[%emt 0:00:32]} Rc2 {[%emt 0:00:00]} 31. Rxc2 {[%emt 0:04:49]} dxc2 {[%emt 0:00:00]} 32. Kh2 {[%emt 0:01:38]} Qc6 {[%emt 0:00:00]} 33. Qf3 {[%emt 0:08:16]} Qxf3 {[%emt 0:00:00]} 34. gxf3 {[%emt 0:03:33]} a5 {[%emt 0:00:00]} 35. Rc1 {[%emt 0:01:07]} Bd3 {[%emt 0:00:00]} 36. Ne4 {[%emt 0:00:41]} Rd8 {[%emt 0:00:00]} 37. Nf2 {[%emt 0:00:35]} Bf5 {[%emt 0:00:00]} 38. Ne4 {[%emt 0:00:14]} Be6 {[%emt 0:00:00]} 39. Rxc2 {[%emt 0:00:09]} Bxb3 {[%emt 0:00:00]} 40. Rc5 {[%emt 0:00:22]} Bc4 {[%emt 0:00:00]} 41. Nd6 {[%emt 0:00:10]} Be2 {[%emt 0:00:00]} 42. Kg3 {[%emt 0:00:06]} Rb8 {[%emt 0:00:00]} 43. Nxf7 {[%emt 0:00:29]} a4 {[%emt 0:00:00]} 44. e6 {[%emt 0:00:27]} Ra8 {[%emt 0:00:00]} 45. Nd6 {[%emt 0:00:28]} b4 {[%emt 0:00:00]} 46. e7 {[%emt 0:00:34]} a3 {[%emt 0:00:00]} 47. bxa3 {[%emt 0:00:54]} b3 {[%emt 0:00:00]} 48. Be5 {[%emt 0:01:09]} Rb8 {[%emt 0:00:00]} 49. e8=Q+ {[%emt 0:00:47]} Rxe8 {[%emt 0:00:00]} 50. Nxe8 {[%emt 0:00:03]} 1-0

[Event "Western Asian Girls Chess-ch 2023"]
[Site "Colombo"]
[Date "2023.12.05"]
[Round "9.7"]
[White "Perera, B Yenuthi Sahanlee"]
[Black "Agajanova, Meryem"]
[Result "1/2-1/2"]
[ECO "E05"]
[WhiteElo "1296"]
[BlackElo "1854"]
[Annotator "NA RC"]
[PlyCount "64"]
[EventDate "2023.11.30"]
[EventCountry "SRI"]
[SourceTitle "playchess.com"]
[Source "ChessBase"]
[SourceQuality "1"]
[TimeControl "5400+30"]

1. d4 d5 2. Nf3 Nf6 3. g3 e6 4. Bg2 Be7 5. O-O O-O 6. c4 {[%emt 0:03:00]} dxc4 {[%emt 0:03:00]} 7. Ne5 {[%emt 0:00:00]} Nc6 8. Bxc6 {[%emt 0:00:42]} bxc6 {[%emt 0:00:00]} 9. Nxc6 {[%emt 0:00:20]} Qe8 {[%emt 0:00:00]} 10. Nxe7+ {[%emt 0:00:25]} Qxe7 {[%emt 0:00:00]} 11. Qa4 {[%emt 0:04:36]} c5 {[%emt 0:00:00]} 12. Qxc4 {[%emt 0:02:56]} cxd4 {[%emt 0:00:12]} 13. Qxd4 {[%emt 0:01:25]} Rd8 {[%emt 0:00:47]} 14. Qh4 {[%emt 0:00:42]} h6 {[%emt 0:00:21]} 15. Nc3 {[%emt 0:00:38]} Bb7 {[%emt 0:12:11]} 16. Be3 {[%emt 0:04:04]} a6 {[%emt 0:16:38]} 17. Na4 {[%emt 0:01:46]} Rac8 {[%emt 0:04:12]} 18. Rac1 {[%emt 0:03:25]} Rxc1 {[%emt 0:01:45]} 19. Rxc1 {[%emt 0:00:13]} Qc7 {[%emt 0:00:08]} 20. f3 {[%emt 0:02:00]} Qe5 {[%emt 0:08:20]} 21. Kf2 {[%emt 0:00:46]} Rd5 {[%emt 0:13:22]} 22. Nb6 {[%emt 0:02:04]} Rb5 {[%emt 0:04:05]} 23. a4 {[%emt 0:08:14]} Rb3 {[%emt 0:07:50]} 24. Nc4 {[%emt 0:00:53]} Qh5 {[%emt 0:01:21]} 25. Qxh5 {[%emt 0:01:14]} Nxh5 {[%emt 0:00:04]} 26. Bd4 {[%emt 0:00:42]} Rb4 {[%emt 0:04:52]} 27. b3 {[%emt 0:00:23]} Rxb3 {[%emt 0:04:05]} 28. Na5 {[%emt 0:00:28]} Rb4 {[%emt 0:00:03]} 29. Bc5 {[%emt 0:00:51]} Rb2 {[%emt 0:00:18]} 30. Bd4 {[%emt 0:00:10]} Rb4 {[%emt 0:00:04]} 31. Bc5 {[%emt 0:00:07]} Rb2 {[%emt 0:00:05]} 32. Bd4 {[%emt 0:00:05]} Rb4 {[%emt 0:00:03]} 1/2-1/2

[Event "Western Asian Girls Chess-ch 2023"]
[Site "Colombo"]
[Date "2023.12.05"]
[Round "9.8"]
[White "Gamage, Desandhi Dhihansa"]
[Black "Gunasekara, K P K Hesara"]
[Result "1-0"]
[ECO "B43"]
[WhiteElo "1608"]
[BlackElo "1352"]
[Annotator "NA RC"]
[PlyCount "89"]
[EventDate "2023.11.30"]
[EventCountry "SRI"]
[SourceTitle "playchess.com"]
[Source "ChessBase"]
[SourceQuality "1"]
[TimeControl "5400+30"]

1. e4 c5 2. Nc3 e6 3. Nf3 a6 {[%emt 1:32:00]} 4. g3 {[%emt 0:00:17]} b5 {[%emt 0:00:00]} 5. Bg2 {[%emt 0:00:07]} Bb7 {[%emt 0:00:00]} 6. d4 {[%emt 0:01:55]} cxd4 {[%emt 0:00:00]} 7. Nxd4 {[%emt 0:00:35]} Nf6 {[%emt 0:00:00]} 8. a3 {[%emt 0:00:40]} Be7 {[%emt 0:00:00]} 9. O-O {[%emt 0:00:23]} d5 {[%emt 0:00:00]} 10. exd5 {[%emt 0:04:14]} Nxd5 {[%emt 0:00:00]} 11. Nf5 {[%emt 0:13:12]} Nxc3 {[%emt 0:00:00]} 12. Nxg7+ {[%emt 0:00:14]} Kf8 {[%emt 0:00:00]} 13. Nxe6+ {[%emt 0:00:15]} fxe6 {[%emt 0:00:00]} 14. Bh6+ {[%emt 0:00:06]} Ke8 {[%emt 0:00:00]} 15. Qh5+ {[%emt 0:00:06]} Kd7 {[%emt 0:00:00]} 16. Bxb7 {[%emt 0:00:51]} Nd5 {[%emt 0:00:00]} 17. Bxa8 {[%emt 0:01:35]} Nc6 {[%emt 0:00:00]} 18. Bxc6+ {[%emt 0:00:45]} Kxc6 {[%emt 0:00:00]} 19. Qe5 {[%emt 0:01:40]} Qc8 {[%emt 0:00:00]} 20. Rfe1 {[%emt 0:00:58]} Bd6 {[%emt 0:00:00]} 21. Qxe6 {[%emt 0:01:29]} Qxe6 {[%emt 0:00:00]} 22. Rxe6 {[%emt 0:00:04]} Kd7 {[%emt 0:00:00]} 23. Re2 {[%emt 0:00:07]} Nb6 {[%emt 0:00:00]} 24. Rd1 {[%emt 0:00:21]} Kc7 {[%emt 0:00:00]} 25. Re6 {[%emt 0:04:07]} Nc8 {[%emt 0:00:00]} 26. Rde1 {[%emt 0:04:17]} Rg8 {[%emt 0:00:00]} 27. Rf6 {[%emt 0:00:50]} Rd8 {[%emt 0:00:00]} 28. Rf7+ {[%emt 0:00:39]} Rd7 {[%emt 0:00:00]} 29. Rxd7+ {[%emt 0:00:05]} Kxd7 {[%emt 0:00:00]} 30. f4 {[%emt 0:00:07]} Ne7 {[%emt 0:00:00]} 31. Bf8 {[%emt 0:00:28]} Ke8 {[%emt 0:00:00]} 32. Bxe7 {[%emt 0:00:13]} Bxe7 {[%emt 0:00:00]} 33. Rxe7+ {[%emt 0:00:14]} Kxe7 {[%emt 0:00:00]} 34. Kf2 {[%emt 0:00:07]} Kf6 {[%emt 0:00:00]} 35. g4 {[%emt 0:00:36]} Kg6 {[%emt 0:00:00]} 36. b3 {[%emt 0:00:55]} Kf6 {[%emt 0:00:00]} 37. Ke3 {[%emt 0:00:07]} Ke6 {[%emt 0:00:00]} 38. c4 {[%emt 0:00:27]} bxc4 {[%emt 0:00:00]} 39. bxc4 {[%emt 0:00:04]} Kd6 {[%emt 0:00:00]} 40. Kd4 {[%emt 0:00:20]} Ke6 {[%emt 0:00:00]} 41. c5 {[%emt 0:00:10]} a5 {[%emt 0:00:00]} 42. f5+ {[%emt 0:00:32]} Ke7 {[%emt 0:00:00]} 43. Kd5 {[%emt 0:00:18]} Kd7 {[%emt 0:00:00]} 44. f6 {[%emt 0:00:14]} Ke8 {[%emt 0:00:00]} 45. Ke6 {[%emt 0:00:23]} 1-0